bitfinex/quotes_BTCUSD_20220101
["timestamp","ask_amount","ask_price","bid_price","bid_amount"]
[1641066424729,0.74926877,47332.0,47331.0,0.77278659]
[1641066424934,0.73027561,47332.0,47331.0,0.77278659]
[1641066425830,0.75134085,47332.0,47331.0,0.77278659]
[1641066426031,0.72649479,47332.0,47331.0,0.77278659]
[1641066426231,0.15649479,47332.0,47331.0,0.77278659]
[1641066426884,0.17734787,47332.0,47331.0,0.77278659]
[1641066427085,0.15628263,47332.0,47331.0,0.77278659]
[1641066428192,0.13542955,47332.0,47331.0,1.11242159]
[1641066428384,0.41542955,47332.0,47331.0,1.11242159]
[1641066429788,0.43410036,47332.0,47331.0,0.77278659]
[1641066430442,0.15410036,47332.0,47331.0,0.77278659]
[1641066430847,0.17506959,47332.0,47331.0,0.77278659]
[1641066431038,0.15639878,47332.0,47331.0,0.77278659]
[1641066432640,0.13542955,47332.0,47331.0,0.77278659]
[1641066433446,0.42542955,47332.0,47331.0,0.77278659]
[1641066434988,0.44377957,47332.0,47331.0,0.77278659]
[1641066435990,0.44392601,47332.0,47331.0,0.77278659]
[1641066437089,0.44659461,47332.0,47331.0,0.77278659]
[1641066437945,0.46841134,47332.0,47331.0,0.77278659]
[1641066438144,0.44724628,47332.0,47331.0,0.77278659]
[1641066438348,0.86724628,47332.0,47331.0,0.77278659]
[1641066438745,0.86724628,47332.0,47331.0,0.76834112]
[1641066438947,0.8891694,47332.0,47331.0,0.76834112]
[1641066439145,0.86735267,47332.0,47331.0,0.76834112]
[1641066439546,0.86735267,47332.0,47331.0,0.76836366]
[1641066439948,0.88609368,47332.0,47331.0,0.76836366]
[1641066440146,0.86417056,47332.0,47331.0,0.76836366]
[1641066440847,0.88309878,47332.0,47331.0,0.74733366]
[1641066441051,0.86435777,47332.0,47331.0,0.74733366]
[1641066441888,0.88359754,47332.0,47331.0,0.74733366]
[1641066442090,0.86466932,47332.0,47331.0,0.74733366]
[1641066442388,0.44466932,47332.0,47331.0,0.74733366]
[1641066442990,0.46439369,47332.0,47331.0,0.74733366]
[1641066443292,0.44515392,47332.0,47331.0,0.74733366]
[1641066443491,0.44515392,47332.0,47331.0,0.74735067]
[1641066443492,3.83594872,47332.0,47331.0,0.74735067]
[1641066443696,4.27685469,47332.0,47331.0,0.61313]
[1641066443892,4.29767046,47332.0,47331.0,0.61313]
[1641066444092,4.27794609,47332.0,47331.0,0.61313]
[1641066444291,4.86772505,47332.0,47331.0,0.190461]
[1641066444490,4.85772505,47332.0,47331.0,0.190461]
[1641066444692,4.91055405,47332.0,47331.0,0.190461]
[1641066444890,4.93138879,47332.0,47331.0,0.190461]
[1641066445090,4.91057302,47332.0,47331.0,0.190461]
[1641066445539,4.32079406,47332.0,47331.0,0.190461]
[1641066445942,5.04732359,47332.0,47331.0,0.190461]
[1641066446140,5.02648885,47332.0,47331.0,0.190461]
[1641066446940,5.04848512,47332.0,47331.0,0.190461]
[1641066447143,5.02969034,47332.0,47331.0,0.190461]
[1641066447342,5.07969034,47332.0,47331.0,0.190461]
[1641066447943,5.0985398,47332.0,47331.0,0.190461]
[1641066448143,5.07654353,47332.0,47331.0,0.190461]
[1641066448946,5.09637568,47332.0,47331.0,0.190461]
[1641066449178,5.07752622,47332.0,47331.0,0.190461]
[1641066449478,4.3685205,47332.0,47331.0,0.190461]
[1641066450078,4.36739633,47332.0,47331.0,0.190461]
[1641066450980,4.38663973,47332.0,47331.0,0.190461]
[1641066451180,4.36793175,47332.0,47331.0,0.190461]
[1641066452081,4.38989756,47332.0,47331.0,0.190461]
[1641066452279,4.37065416,47332.0,47331.0,0.190461]
[1641066452945,4.39345009,47332.0,47331.0,0.190461]
[1641066453143,5.26635948,47332.0,47331.0,0.190461]
[1641066453743,6.38435948,47332.0,47331.0,0.190461]
[1641066453942,0.052838,47326.0,47320.0,0.00022]
[1641066454145,0.05283576,47325.0,47320.0,0.00022]
[1641066454341,0.05283576,47325.0,47321.0,9.129e-05]
[1641066454543,0.20850952,47326.0,47321.0,9.129e-05]
[1641066454943,0.15567152,47326.0,47321.0,9.129e-05]
[1641066455544,0.052836,47324.0,47321.0,9.129e-05]
[1641066455743,0.10567027,47323.0,47321.0,9.129e-05]
[1641066459377,0.052836,47324.0,47321.0,9.129e-05]
[1641066459576,0.0528316,47323.0,47321.0,9.129e-05]
[1641066463932,0.0528316,47323.0,47321.0,1.29e-06]
[1641066464189,0.00128012,47315.0,47312.0,0.00055]
[1641066464388,0.00128012,47315.0,47313.0,0.63407]
[1641066464389,0.38807114,47314.0,47313.0,0.63407]
[1641066464591,0.19843614,47314.0,47313.0,0.63421606]
[1641066464789,0.24843614,47314.0,47313.0,0.63421606]
[1641066464988,1.37843614,47314.0,47313.0,0.63421606]
[1641066465188,1.79235668,47314.0,47313.0,0.63421606]
[1641066465588,1.84520692,47314.0,47313.0,0.63421606]
[1641066466088,1.86386151,47314.0,47313.0,0.63421606]
[1641066466287,1.84243297,47314.0,47313.0,0.63421606]
[1641066466690,2.73730817,47314.0,47313.0,0.63421606]
[1641066467092,2.75577047,47314.0,47313.0,0.63421606]
[1641066467289,2.73711588,47314.0,47313.0,0.63421606]
[1641066468644,2.75754193,47314.0,47313.0,0.63421606]
[1641066468845,2.73907963,47314.0,47313.0,0.63421606]
[1641066469045,2.75989213,47314.0,47313.0,0.63421606]
[1641066469244,2.73946608,47314.0,47313.0,0.63421606]
[1641066470247,2.759598,47314.0,47313.0,0.63421606]
[1641066470549,2.7387855,47314.0,47313.0,0.63421606]
[1641066471147,2.75774957,47314.0,47313.0,0.63421606]
[1641066471352,2.73638151,47314.0,47313.0,0.63421606]
[1641066471798,1.84150631,47314.0,47313.0,0.63421606]
[1641066472800,1.86242234,47314.0,47313.0,0.63421606]
[1641066473000,1.84345827,47314.0,47313.0,0.63421606]
[1641066473201,1.86376372,47314.0,47313.0,0.63421606]
[1641066473402,1.84284769,47314.0,47313.0,0.63421606]
[1641066473602,1.8441264,47314.0,47313.0,0.63421606]
[1641066474205,1.86301553,47314.0,47313.0,0.63421606]
[1641066474405,1.84271008,47314.0,47313.0,0.63421606]
[1641066475206,1.86256195,47314.0,47313.0,0.63421606]
[1641066475436,1.84367282,47314.0,47313.0,0.63421606]
[1641066476234,1.86203542,47314.0,47313.0,0.63421606]
[1641066477035,1.82382095,47314.0,47313.0,0.63421606]
[1641066477236,1.84507969,47314.0,47313.0,0.63421606]
[1641066477937,2.96307969,47314.0,47313.0,0.21135806]
[1641066478140,1.118,47312.0,47309.0,0.00022]
[1641066478338,0.386835,47311.0,47309.0,0.00022]
[1641066478539,0.592551,47311.0,47309.0,0.00022]
[1641066478941,0.9477332,47311.0,47309.0,0.00022]
[1641066479199,0.96925843,47311.0,47309.0,0.00022]
[1641066479600,1.02211575,47311.0,47309.0,0.00022]
[1641066480204,0.14668838,47311.0,47310.0,0.13862659]
[1641066480400,0.12516315,47311.0,47310.0,0.13862659]
[1641066480802,0.71516315,47311.0,47310.0,0.13862659]
[1641066481000,0.71516315,47311.0,47309.0,0.00022]
[1641066481200,0.71516315,47311.0,47310.0,0.13362659]
[1641066481404,0.10571532,47311.0,47310.0,0.13362659]
[1641066482003,0.052858,47311.0,47310.0,0.13362659]
[1641066482935,0.052858,47311.0,47309.0,0.00022]
[1641066483339,1.469635,47310.0,47309.0,0.00022]
[1641066483536,1.569635,47310.0,47309.0,0.00022]
[1641066483736,1.5748447,47310.0,47309.0,0.00029303]
[1641066483936,2.74127312,47310.0,47309.0,0.00029303]
[1641066484136,1.616835,47310.0,47309.0,0.00029303]
[1641066484338,1.29867964,47310.0,47309.0,0.00029303]
[1641066484940,1.63831464,47310.0,47309.0,0.00029303]
[1641066485340,1.65802198,47310.0,47309.0,0.00029303]
[1641066485540,1.63654234,47310.0,47309.0,0.00029303]
[1641066486138,1.53654234,47310.0,47309.0,0.00029303]
[1641066486339,1.63521965,47310.0,47309.0,0.00029303]
[1641066486994,1.53521965,47310.0,47309.0,0.00029303]
[1641066487192,1.5537439,47310.0,47309.0,0.00029303]
[1641066487393,1.2141089,47310.0,47309.0,0.00029303]
[1641066487595,1.19572425,47310.0,47309.0,0.00029303]
[1641066488193,1.21730405,47310.0,47309.0,0.00029303]
[1641066488393,1.1987798,47310.0,47309.0,0.00029303]
[1641066489195,1.21736479,47310.0,47309.0,0.00029303]
[1641066489395,1.19578499,47310.0,47309.0,0.00029303]
[1641066489995,1.14858499,47310.0,47309.0,0.00029303]
[1641066490434,1.15153159,47310.0,47309.0,0.13391962]
[1641066491228,1.17275723,47310.0,47309.0,0.13391962]
[1641066491429,1.15122564,47310.0,47309.0,0.13391962]
[1641066492232,1.17241028,47310.0,47309.0,0.13391962]
[1641066492432,1.15118464,47310.0,47309.0,0.13391962]
[1641066493233,1.17030604,47310.0,47309.0,0.13391962]
[1641066494291,1.19228211,47310.0,47309.0,0.13391962]
[1641066494493,1.15197607,47310.0,47309.0,0.13391962]
[1641066495898,1.17298555,47310.0,47309.0,0.13391962]
[1641066496095,1.15100948,47310.0,47309.0,0.13391962]
[1641066496496,0.02100948,47310.0,47309.0,0.13391962]
[1641066496696,0.36100948,47310.0,47309.0,0.13391962]
[1641066496899,0.38200212,47310.0,47309.0,0.13391962]
[1641066497095,0.36099264,47310.0,47309.0,0.13391962]
[1641066497295,0.37983567,47310.0,47309.0,0.13391962]
[1641066497496,0.35884303,47310.0,47309.0,0.13391962]
[1641066497698,0.74884303,47310.0,47309.0,0.13391962]
[1641066498146,0.01884303,47310.0,47309.0,0.13391962]
[1641066498450,0.03885193,47310.0,47309.0,0.18675962]
[1641066499044,0.052837,47314.0,47309.0,0.52639462]
[1641066499243,0.052837,47314.0,47309.0,0.05313303]
[1641066499445,0.052837,47314.0,47311.0,0.052837]
[1641066500050,0.052837,47314.0,47309.0,0.00029303]
[1641066500246,0.052851,47312.0,47309.0,0.00029303]
[1641066500445,0.00121902,47310.0,47309.0,0.00029303]
[1641066500647,1.13,47310.0,47309.0,0.00029303]
[1641066501151,1.23,47310.0,47309.0,0.13391962]
[1641066501347,1.25176509,47310.0,47309.0,0.13391962]
[1641066501601,1.15176509,47310.0,47309.0,0.13391962]
[1641066502300,1.16995592,47310.0,47309.0,0.13391962]
[1641066502501,1.14819083,47310.0,47309.0,0.13391962]
[1641066503305,1.16958386,47310.0,47309.0,0.00029303]
[1641066503508,1.49102803,47310.0,47309.0,0.00029303]
[1641066503707,0.02139303,47310.0,47309.0,0.00029303]
[1641066504307,0.02139303,47310.0,47309.0,0.13391962]
[1641066504506,0.66139303,47310.0,47309.0,0.13391962]
[1641066504808,0.64,47310.0,47309.0,0.13391962]
[1641066505441,0.65859656,47310.0,47309.0,0.13391962]
[1641066506341,0.03781066,47310.0,47309.0,0.13391962]
[1641066506541,0.4792141,47310.0,47309.0,0.13391962]
[1641066508043,0.4986643,47310.0,47309.0,0.13391962]
[1641066508242,0.4794502,47310.0,47309.0,0.13391962]
[1641066508444,0.49816278,47310.0,47309.0,0.13391962]
[1641066508646,0.47871258,47310.0,47309.0,0.13391962]
[1641066509489,0.79992454,47310.0,47309.0,0.13391962]
[1641066509688,0.78121196,47310.0,47309.0,0.13391962]
[1641066509890,0.78121196,47310.0,47309.0,0.00029303]
[1641066510492,1.17032145,47310.0,47309.0,0.00029303]
[1641066510692,1.14910949,47310.0,47309.0,0.00029303]
[1641066511193,1.14910949,47310.0,47309.0,0.13391962]
[1641066511194,0.77910949,47310.0,47309.0,0.13391962]
[1641066511392,0.80016876,47310.0,47309.0,0.13391962]
[1641066511593,0.78105927,47310.0,47309.0,0.13391962]
[1641066512494,0.79988125,47310.0,47309.0,0.13391962]
[1641066512692,0.77882198,47310.0,47309.0,0.13391962]
[1641066512942,0.47882198,47310.0,47309.0,0.13391962]
[1641066513542,0.85010219,47310.0,47309.0,0.13391962]
[1641066513745,0.85010219,47310.0,47309.0,0.13384659]
[1641066514542,0.87106293,47310.0,47309.0,0.13384659]
[1641066515142,0.83,47310.0,47309.0,0.13384659]
[1641066515347,0.46,47310.0,47309.0,0.13384659]
[1641066515544,0.47884801,47310.0,47309.0,0.13384659]
[1641066515743,0.46,47310.0,47309.0,0.13384659]
[1641066516587,0.4800528,47310.0,47309.0,0.13384659]
[1641066517389,0.97968048,47310.0,47309.0,0.13384659]
[1641066517590,0.47962768,47310.0,47309.0,0.13384659]
[1641066518591,0.49809813,47310.0,47309.0,0.13384659]
[1641066518793,0.47847045,47310.0,47309.0,0.13384659]
[1641066519589,0.50015691,47310.0,47309.0,0.13384659]
[1641066519789,0.48168646,47310.0,47309.0,0.13384659]
[1641066520435,0.5035954,47310.0,47309.0,0.13384659]
[1641066520637,0.48190894,47310.0,47309.0,0.13384659]
[1641066521540,0.50226966,47310.0,47309.0,0.13384659]
[1641066521737,0.48036072,47310.0,47309.0,0.13384659]
[1641066522537,0.50018478,47310.0,47309.0,0.13384659]
[1641066522735,0.47982406,47310.0,47309.0,0.13384659]
[1641066523737,0.48155807,47310.0,47309.0,0.13384659]
[1641066523939,0.02155807,47310.0,47309.0,0.13384659]
[1641066524198,0.02155807,47310.0,47309.0,0.47348159]
[1641066524495,0.36155807,47310.0,47309.0,0.85047539]
[1641066524694,0.38230857,47310.0,47309.0,0.85047539]
[1641066524997,0.3607505,47310.0,47309.0,0.85047539]
[1641066525595,0.04200231,47310.0,47309.0,0.85047539]
[1641066525796,0.02125181,47310.0,47309.0,0.85047539]
[1641066526396,0.44125181,47310.0,47309.0,0.85047539]
[1641066526800,0.42,47310.0,47309.0,0.85047539]
[1641066527597,0.4407483,47310.0,47309.0,0.85047539]
[1641066528038,0.0207483,47310.0,47309.0,0.85047539]
[1641066528238,0.3907483,47310.0,47309.0,0.85047539]
[1641066528639,0.41000427,47310.0,47309.0,0.47348159]
[1641066528842,0.38925597,47310.0,47309.0,0.47348159]
[1641066529240,0.69925597,47310.0,47309.0,0.47348159]
[1641066529443,0.69925597,47310.0,47309.0,0.13384659]
[1641066529640,0.72119562,47310.0,47309.0,0.13384659]
[1641066529841,0.70193965,47310.0,47309.0,0.13384659]
[1641066530642,0.72076535,47310.0,47309.0,0.13384659]
[1641066530843,0.6988257,47310.0,47309.0,0.13384659]
[1641066531444,0.3888257,47310.0,47309.0,0.48579032]
[1641066532097,0.3888257,47310.0,47309.0,0.48569032]
[1641066532393,0.39186056,47310.0,47309.0,0.48569032]
[1641066532594,0.41157389,47310.0,47309.0,0.48569032]
[1641066532794,0.38971333,47310.0,47309.0,0.48569032]
[1641066533594,0.40982104,47310.0,47309.0,0.48569032]
[1641066533794,0.39010771,47310.0,47309.0,0.48569032]
[1641066534495,0.39010771,47310.0,47309.0,0.13374659]
[1641066534797,0.38805198,47310.0,47309.0,0.13374659]
[1641066534995,0.38805198,47310.0,47309.0,0.48781501]
[1641066535638,0.40886734,47310.0,47309.0,0.48781501]
[1641066535840,0.39081536,47310.0,47309.0,0.82745001]
[1641066536039,0.39081536,47310.0,47309.0,0.47338159]
[1641066536239,0.39081536,47310.0,47309.0,0.82118851]
[1641066536439,0.39081536,47310.0,47309.0,0.47338159]
[1641066537038,0.39081536,47310.0,47309.0,0.8213532]
[1641066537239,0.40937974,47310.0,47309.0,0.8213532]
[1641066537441,0.38856438,47310.0,47309.0,0.8213532]
[1641066537640,0.41041966,47310.0,47309.0,0.8213532]
[1641066537839,0.39185528,47310.0,47309.0,0.8213532]
[1641066538843,0.38987542,47310.0,47309.0,0.47338159]
[1641066539392,0.01987542,47310.0,47309.0,0.82185313]
[1641066539794,0.03844297,47310.0,47309.0,0.82185313]
[1641066539997,0.01856755,47310.0,47309.0,0.82185313]
[1641066540894,0.052839,47311.0,47309.0,0.47338159]
[1641066541094,0.052839,47311.0,47310.0,0.47326159]
[1641066541497,0.052839,47311.0,47310.0,0.339635]
[1641066541897,0.052839,47311.0,47309.0,0.00012]
[1641066563994,0.052839,47311.0,47309.0,0.34716291]
[1641066564194,0.052839,47311.0,47309.0,0.00012]
[1641066566136,0.052839,47311.0,47309.0,0.34831952]
[1641066566334,0.052839,47311.0,47309.0,0.35787236]
[1641066568640,0.052839,47311.0,47309.0,0.00012]
[1641066572201,1.469635,47310.0,47309.0,0.00012]
[1641066572398,0.052839,47311.0,47309.0,0.13374659]
[1641066572598,0.052839,47311.0,47309.0,0.35342907]
[1641066572834,0.052839,47311.0,47310.0,0.35896973]
[1641066573438,0.052839,47311.0,47309.0,0.00012]
[1641066573439,0.052839,47311.0,47309.0,0.052961]
[1641066573837,0.052839,47311.0,47310.0,0.48351176]
[1641066575439,0.02151201,47315.0,47310.0,0.9291698]
[1641066575638,0.02151201,47315.0,47314.0,0.34085092]
[1641066575639,0.03999978,47315.0,47314.0,0.34085092]
[1641066575841,0.01848777,47315.0,47314.0,0.97884005]
[1641066576042,0.01848777,47315.0,47314.0,1.81430005]
[1641066576243,0.01903454,47318.0,47315.0,1.56323511]
[1641066576439,0.01903454,47318.0,47317.0,0.95455707]
[1641066576701,0.01903454,47318.0,47317.0,2.19293961]
[1641066577301,0.01903454,47318.0,47317.0,1.70417159]
[1641066577903,3.454e-05,47318.0,47317.0,1.70417159]
[1641066578505,3.454e-05,47318.0,47317.0,1.72415075]
[1641066578705,0.54822,47332.0,47317.0,1.72415075]
[1641066578909,0.54822,47332.0,47327.0,0.052817]
[1641066579105,0.54822,47332.0,47328.0,0.37014915]
[1641066579106,0.00032864,47331.0,47328.0,0.37014915]
[1641066579307,0.00032864,47331.0,47330.0,0.13362659]
[1641066579507,0.54822,47332.0,47330.0,0.13362659]
[1641066579708,1.40822,47332.0,47331.0,0.13362659]
[1641066580109,1.4085669,47332.0,47331.0,0.13362659]
[1641066580946,1.4085669,47332.0,47331.0,0.18644359]
[1641066582550,0.5485669,47332.0,47331.0,0.18644359]
[1641066582751,1.2185669,47332.0,47331.0,0.18644359]
[1641066584207,1.2185669,47332.0,47331.0,0.13362659]
[1641066588946,0.54583472,47332.0,47331.0,0.13362659]
[1641066590645,0.54083472,47332.0,47331.0,0.13362659]
[1641066593202,0.54083472,47332.0,47326.0,0.04201947]
[1641066593203,1.32113734,47332.0,47326.0,0.04201947]
[1641066593402,1.32113734,47332.0,47326.0,0.02075836]
[1641066593403,0.339635,47331.0,47326.0,0.02075836]
[1641066593603,0.43996364,47331.0,47326.0,0.02075836]
[1641066593801,0.00031038,47330.0,47326.0,0.02075836]
[1641066594003,0.339635,47329.0,47326.0,0.02075836]
[1641066594202,0.33992712,47329.0,47326.0,0.02075836]
[1641066594404,0.00027386,47328.0,47317.0,0.70527149]
[1641066594601,0.00156083,47328.0,47317.0,0.70527149]
[1641066594800,0.00025561,47327.0,47317.0,0.70527149]
[1641066595202,0.05283292,47324.0,47317.0,0.72344844]
[1641066595435,0.10590318,47326.0,47318.0,0.339635]
[1641066595635,0.00018258,47323.0,47318.0,0.052831]
[1641066595838,0.00021909,47325.0,47318.0,0.052831]
[1641066596036,0.00016432,47322.0,47318.0,0.052831]
[1641066596239,0.00020083,47324.0,47318.0,0.07186827]
[1641066596437,0.00014606,47321.0,47318.0,0.07186827]
[1641066596739,0.50348422,47331.0,47320.0,0.18645559]
[1641066596940,0.1,47331.0,47320.0,0.052829]
[1641066597138,0.00021909,47325.0,47320.0,0.052829]
[1641066597540,0.00020083,47324.0,47320.0,0.052829]
[1641066597742,0.00020083,47324.0,47321.0,0.339635]
[1641066597940,0.00018258,47323.0,47322.0,0.41814772]
[1641066598146,0.00018258,47323.0,47322.0,0.43169016]
[1641066599188,0.00018258,47323.0,47322.0,0.45331795]
[1641066600290,0.00018258,47323.0,47322.0,0.4750904]
[1641066600490,0.00018258,47323.0,47322.0,0.45346261]
[1641066601291,0.00018258,47323.0,47322.0,0.8416496]
[1641066601489,0.00018258,47323.0,47322.0,0.4499908]
[1641066601691,0.00018258,47323.0,47322.0,1.0839408]
[1641066601890,3.258e-05,47323.0,47322.0,1.0839408]
[1641066602294,3.258e-05,47323.0,47322.0,1.10452789]
[1641066602490,3.258e-05,47323.0,47322.0,1.08622725]
[1641066603339,3.258e-05,47323.0,47322.0,1.1052544]
[1641066603636,3.258e-05,47323.0,47322.0,1.08466731]
[1641066604437,3.258e-05,47323.0,47322.0,1.6741758]
[1641066604839,3.258e-05,47323.0,47322.0,1.0818118]
[1641066605437,0.59330582,47332.0,47322.0,1.10071394]
[1641066605637,0.59330582,47332.0,47322.0,0.70330814]
[1641066605838,0.59330582,47332.0,47331.0,0.25765808]
[1641066606041,0.54048782,47332.0,47331.0,0.31047408]
[1641066606438,0.89068472,47332.0,47331.0,0.31047408]
[1641066606697,0.54068472,47332.0,47331.0,0.31047408]
[1641066607098,0.54068472,47332.0,47331.0,0.44410067]
[1641066607297,0.54068472,47332.0,47331.0,0.32964229]
[1641066607498,0.54068472,47332.0,47331.0,0.46326888]
[1641066607796,0.54068472,47332.0,47331.0,0.32964229]
[1641066608396,0.54068472,47332.0,47331.0,0.34778256]
[1641066608696,0.54068472,47332.0,47331.0,0.32861435]
[1641066609496,0.54068472,47332.0,47331.0,0.32971648]
[1641066609897,0.54068472,47332.0,47331.0,0.0192424]
[1641066610340,1.15068472,47332.0,47331.0,0.0382688]
[1641066610538,1.15068472,47332.0,47331.0,0.0190264]
[1641066611737,0.05282,47330.0,47327.0,0.33075533]
[1641066611938,1.15068472,47332.0,47329.0,0.13362659]
[1641066612140,0.00014212,47329.0,47327.0,0.33075533]
[1641066612339,0.00017864,47331.0,47328.0,0.13362659]
[1641066612539,0.00017864,47331.0,47327.0,0.34975167]
[1641066612540,0.54048782,47332.0,47330.0,0.13362659]
[1641066612741,0.54048782,47332.0,47327.0,0.34975167]
[1641066612939,0.052821,47330.0,47327.0,0.01899634]
[1641066613139,0.052821,47330.0,47329.0,0.13362659]
[1641066613539,0.54048782,47332.0,47329.0,0.18644459]
[1641066613741,0.54048782,47332.0,47329.0,0.052818]
[1641066613941,0.00017864,47331.0,47329.0,0.052818]
[1641066614196,0.00017864,47331.0,47330.0,0.13362659]
[1641066614496,0.89017864,47331.0,47330.0,0.13362659]
[1641066615898,0.89017864,47331.0,47330.0,0.18644459]
[1641066616098,0.89017864,47331.0,47330.0,0.13362659]
[1641066616299,1.13017864,47331.0,47330.0,0.13362659]
[1641066617698,1.13009859,47331.0,47330.0,0.13362659]
[1641066617945,0.89009859,47331.0,47330.0,0.13362659]
[1641066620045,9.859e-05,47331.0,47330.0,0.13362659]
[1641066620844,9.859e-05,47331.0,47330.0,0.18644459]
[1641066624115,9.859e-05,47331.0,47330.0,0.64508929]
[1641066624315,9.859e-05,47331.0,47330.0,2.07577429]
[1641066624515,9.859e-05,47331.0,47330.0,2.17577429]
[1641066625559,9.859e-05,47331.0,47330.0,2.19636206]
[1641066626256,0.12758782,47332.0,47330.0,3.31436206]
[1641066626457,0.12758782,47332.0,47331.0,1.63980619]
[1641066626656,0.12758782,47332.0,47331.0,3.53883619]
[1641066627561,0.12758782,47332.0,47331.0,3.56073291]
[1641066628560,0.12758782,47332.0,47331.0,3.93097223]
[1641066628760,0.12758782,47332.0,47331.0,3.55907551]
[1641066629591,0.12758782,47332.0,47331.0,3.57932258]
[1641066629791,0.12758782,47332.0,47331.0,3.55908326]
[1641066630194,0.12758782,47332.0,47331.0,2.44108326]
[1641066630593,0.12758782,47332.0,47331.0,2.45939448]
[1641066630793,0.12758782,47332.0,47331.0,2.43914741]
[1641066631592,0.12758782,47332.0,47331.0,2.45795873]
[1641066631793,0.12758782,47332.0,47331.0,2.43964751]
[1641066632194,0.12758782,47332.0,47331.0,3.55764751]
[1641066632595,0.1271875,47332.0,47331.0,3.57734527]
[1641066632846,0.1271875,47332.0,47331.0,2.44053395]
[1641066633039,0.1271875,47332.0,47331.0,2.84853395]
[1641066633638,0.1271875,47332.0,47331.0,2.87032843]
[1641066633838,0.12678718,47332.0,47331.0,2.85063067]
[1641066634040,0.00925473,47337.0,47336.0,0.622797]
[1641066634239,0.00925473,47337.0,47336.0,2.04797947]
[1641066634438,0.00925473,47337.0,47336.0,3.38796405]
[1641066634639,0.00925473,47337.0,47336.0,3.65148217]
[1641066635438,0.00925473,47337.0,47336.0,4.11049981]
[1641066635638,0.00925473,47337.0,47336.0,4.13089149]
[1641066636239,0.21,47349.0,47348.0,0.27282146]
[1641066636692,0.21,47349.0,47348.0,0.29953374]
[1641066638093,0.21,47349.0,47348.0,0.64516289]
[1641066638493,0.21,47349.0,47348.0,0.29953374]
[1641066639294,0.21,47349.0,47348.0,0.64949232]
[1641066640746,0.21,47349.0,47348.0,0.6704729]
[1641066641545,0.21,47349.0,47348.0,0.32051432]
[1641066641946,0.21,47349.0,47348.0,0.66352132]
[1641066642345,0.21,47349.0,47348.0,0.68219824]
[1641066642546,0.21,47349.0,47348.0,0.66121766]
[1641066642745,0.21,47349.0,47348.0,0.68133479]
[1641066643045,0.21,47349.0,47348.0,0.66265787]
[1641066643446,0.21,47349.0,47348.0,0.31965087]
[1641066643744,0.21,47349.0,47348.0,0.34142759]
[1641066643947,0.21,47349.0,47348.0,0.32131046]
[1641066644186,0.185,47349.0,47348.0,0.32131046]
[1641066644787,0.185,47349.0,47348.0,0.31963494]
[1641066645791,0.185,47349.0,47348.0,0.34039956]
[1641066645991,0.185,47349.0,47348.0,0.32029836]
[1641066646596,0.185,47349.0,47348.0,0.0474769]
[1641066646793,0.185,47349.0,47348.0,0.06882319]
[1641066646993,0.185,47349.0,47348.0,0.04805857]
[1641066647842,0.185,47349.0,47348.0,0.02671228]
[1641066654806,0.175,47349.0,47348.0,0.02671228]
[1641066658657,0.175,47349.0,47348.0,0.36806271]
[1641066659797,0.175,47349.0,47348.0,0.38731316]
[1641066660897,0.175,47349.0,47348.0,0.40683086]
[1641066661098,0.175,47349.0,47348.0,0.38758041]
[1641066661896,0.175,47349.0,47348.0,0.40932511]
[1641066662097,0.175,47349.0,47348.0,0.38980741]
[1641066662938,0.175,47349.0,47348.0,0.06708914]
[1641066663139,0.175,47349.0,47348.0,0.04534444]
[1641066664141,0.175,47349.0,47348.0,0.02671228]
[1641066682286,0.17344655,47349.0,47348.0,0.02671228]
[1641066684292,0.17344655,47349.0,47345.0,0.01809075]
[1641066684492,1.13,47347.0,47342.0,0.9573945]
[1641066684691,0.00123491,47343.0,47342.0,0.9573945]
[1641066684896,0.00123491,47343.0,47340.0,0.9573945]
[1641066685092,1.131454,47343.0,47342.0,0.01801433]
[1641066685347,1.13123491,47343.0,47342.0,0.01801433]
[1641066685565,1.47086991,47343.0,47342.0,0.01801433]
[1641066686142,1.47086991,47343.0,47342.0,0.01593109]
[1641066686543,1.57648891,47343.0,47342.0,0.01593109]
[1641066687244,1.95451667,47343.0,47336.0,0.65479674]
[1641066687445,0.05280944,47340.0,47336.0,0.70760574]
[1641066687643,0.05280944,47340.0,47339.0,0.13362659]
[1641066687644,0.105612,47340.0,47339.0,0.13362659]
[1641066688051,0.96577632,47340.0,47339.0,0.13362659]
[1641066689101,0.96577632,47340.0,47336.0,0.67585482]
[1641066689300,0.96577632,47340.0,47336.0,0.65502594]
[1641066689502,0.00014606,47339.0,47336.0,0.65502594]
[1641066689701,0.05295606,47339.0,47336.0,0.65502594]
[1641066689904,0.0001278,47338.0,47336.0,0.65502594]
[1641066690102,0.0001278,47338.0,47336.0,0.67405043]
[1641066690305,0.00010955,47337.0,47336.0,0.65279449]
[1641066690503,0.00010955,47337.0,47336.0,0.99242949]
[1641066690904,0.00010955,47337.0,47336.0,1.04523949]
[1641066691104,0.00010955,47337.0,47336.0,1.06342197]
[1641066691604,0.00010955,47337.0,47336.0,1.19704856]
[1641066691803,0.00010955,47337.0,47336.0,1.15984159]
[1641066692004,0.00010955,47337.0,47336.0,1.17845522]
[1641066692871,0.00010955,47337.0,47336.0,1.04482863]
[1641066693067,0.00010955,47337.0,47336.0,1.06663724]
[1641066693267,0.00010955,47337.0,47336.0,1.04802361]
[1641066694068,0.00010955,47337.0,47336.0,1.1816502]
[1641066694665,0.00010955,47337.0,47336.0,1.2014639]
[1641066694865,0.00010955,47337.0,47336.0,0.9932187]
[1641066695067,0.00010955,47337.0,47336.0,1.01427742]
[1641066695268,0.00010955,47337.0,47336.0,0.99446372]
[1641066695869,0.00010955,47337.0,47336.0,1.12809031]
[1641066696067,0.00010955,47337.0,47336.0,1.14923245]
[1641066696265,0.00010955,47337.0,47336.0,1.12817373]
[1641066697103,0.00010955,47337.0,47336.0,1.15003593]
[1641066697300,0.00010955,47337.0,47336.0,1.12889379]
[1641066698098,0.00010955,47337.0,47336.0,1.14867071]
[1641066698300,0.00010955,47337.0,47336.0,1.12680851]
[1641066699101,0.00010955,47337.0,47336.0,1.14814706]
[1641066699301,0.00010955,47337.0,47336.0,1.12837014]
[1641066700200,0.00010955,47337.0,47336.0,1.14871407]
[1641066700454,0.00010955,47337.0,47336.0,1.12737552]
[1641066701257,0.00010955,47337.0,47336.0,1.14725573]
[1641066701456,0.00010955,47337.0,47336.0,1.1269118]
[1641066702255,0.00010955,47337.0,47336.0,0.80696549]
[1641066702458,0.00010955,47337.0,47336.0,0.78708528]
[1641066702958,0.00010955,47337.0,47336.0,0.65345869]
[1641066703158,0.00010955,47337.0,47336.0,0.67252671]
[1641066703356,0.00010955,47337.0,47336.0,0.65283802]
[1641066704195,0.00010955,47337.0,47336.0,0.6713063]
[1641066704396,0.00010955,47337.0,47336.0,0.65223828]
[1641066705395,0.00010955,47337.0,47336.0,0.652797]
[1641066706299,0.00010955,47337.0,47336.0,0.6745875]
[1641066706496,0.00010955,47337.0,47336.0,0.6555605]